[Event "Schack-SM 2024: Veteran-SM 65+"]
[Site "Fortnox Arena, Hejaregatan 5, Vaxjo, Sweden"]
[Date "2024.07.07"]
[Round "9.1"]
[White "Engstrom, Kaj"]
[Black "Gillefalk, Bjorn"]
[Result "1-0"]
[TimeControl "90 minutes for 40 moves + 30 minutes for the rest of the game + 30 seconds per move from move one."]
[WhiteElo "2163"]
[BlackElo "2063"]

1. e4 {[%clk 01:30:59]} c5 {[%clk 01:30:54]} {[%emt 00:00:06]} 2. Nf3 {[%clk
01:31:24]} {[%emt 00:00:05]} Nc6 {[%clk 01:31:20]} {[%emt 00:00:04]} 3. Bb5
{[%clk 01:31:43]} {[%emt 00:00:12]} Nf6 {[%clk 01:31:13]} {[%emt 00:00:36]} 4.
e5 {[%clk 01:30:10]} {[%emt 00:02:04]} Nd5 {[%clk 01:31:39]} {[%emt 00:00:04]}
5. O-O {[%clk 01:30:09]} {[%emt 00:00:31]} g6 {[%clk 01:30:41]} {[%emt
00:01:27]} 6. Re1 {[%emt 00:00:45]} Bg7 {[%clk 01:30:58]} 7. Nc3 {[%clk
01:29:56]} {[%emt 00:00:42]} Nxc3 {[%emt 00:02:39]} 8. dxc3 {[%emt 00:00:25]}
O-O {[%clk 01:27:58]} {[%emt 00:00:26]} 9. Bf4 {[%clk 01:30:18]} {[%emt
00:00:07]} Qb6 {[%clk 01:23:34]} {[%emt 00:04:55]} 10. a4 {[%clk 01:27:02]}
{[%emt 00:03:46]} a6 {[%clk 01:21:16]} {[%emt 00:02:48]} 11. Bf1 {[%clk
01:25:36]} {[%emt 00:01:56]} Qxb2 {[%clk 01:19:54]} {[%emt 00:01:52]} 12. Qd2
{[%clk 01:25:02]} {[%emt 00:01:03]} Qb6 {[%clk 01:18:41]} {[%emt 00:01:44]} 13.
Bh6 {[%clk 01:25:16]} {[%emt 00:00:15]} d6 {[%clk 00:57:46]} {[%emt 00:21:26]}
14. Re4 {[%clk 01:20:03]} {[%emt 00:05:43]} Nxe5 {[%clk 00:51:57]} {[%emt
00:06:19]} 15. Rh4 {[%clk 01:18:03]} {[%emt 00:02:29]} Ng4 {[%clk 00:38:27]}
{[%emt 00:14:00]} 16. Bxg7 {[%clk 01:17:26]} {[%emt 00:01:07]} Kxg7 {[%clk
00:38:51]} {[%emt 00:00:06]} 17. h3 {[%emt 00:00:26]} h5 {[%clk 00:37:22]}
{[%emt 00:01:44]} 18. hxg4 {[%clk 01:16:32]} {[%emt 00:01:43]} Bxg4 {[%clk
00:36:58]} {[%emt 00:00:54]} 19. Nh2 {[%clk 01:16:19]} {[%emt 00:00:43]} Bf5
{[%clk 00:28:35]} {[%emt 00:08:53]} 20. g4 {[%clk 01:15:24]} {[%emt 00:01:25]}
hxg4 {[%clk 00:28:56]} {[%emt 00:00:10]} 21. Qh6+ {[%clk 01:14:55]} {[%emt
00:00:58]} Kf6 {[%clk 00:29:20]} {[%emt 00:00:07]} 22. Nxg4+ {[%clk 01:15:08]}
{[%emt 00:00:17]} Bxg4 {[%clk 00:25:53]} {[%emt 00:03:57]} 23. Rxg4 {[%clk
01:15:28]} {[%emt 00:00:09]} Rh8 {[%clk 00:26:08]} {[%emt 00:00:15]} 24. Rf4+
{[%clk 01:14:38]} {[%emt 00:01:21]} Ke6 {[%clk 00:25:20]} {[%emt 00:01:17]} 25.
Bh3+ {[%clk 01:14:43]} {[%emt 00:00:25]} Kd5 {[%clk 00:20:56]} {[%emt
00:04:55]} 26. Qg5+ {[%clk 01:10:40]} {[%emt 00:04:32]} 1-0

[Event "Schack-SM 2024: Veteran-SM 65+"]
[Site "Fortnox Arena, Hejaregatan 5, Vaxjo, Sweden"]
[Date "2024.07.07"]
[Round "9.3"]
[White "Wedin, Svante"]
[Black "Magnussen, Pal"]
[Result "0-1"]
[TimeControl "90 minutes for 40 moves + 30 minutes for the rest of the game + 30 seconds per move from move one."]
[WhiteElo "1907"]
[BlackElo "1905"]

1. e4 {[%clk 01:30:58]} {[%emt 00:00:01]} e5 {[%clk 01:30:47]} {[%emt
00:00:13]} 2. Nf3 {[%clk 01:31:23]} {[%emt 00:00:05]} Nc6 {[%clk 01:31:12]}
{[%emt 00:00:06]} 3. Bc4 {[%clk 01:31:48]} {[%emt 00:00:04]} Bc5 {[%clk
01:31:01]} {[%emt 00:00:40]} 4. O-O {[%clk 01:27:05]} {[%emt 00:05:14]} Nf6
{[%clk 01:30:43]} {[%emt 00:00:48]} 5. Nc3 {[%clk 01:26:19]} {[%emt 00:01:17]}
d6 {[%clk 01:27:00]} {[%emt 00:04:13]} 6. h3 {[%clk 01:23:20]} {[%emt
00:03:28]} a6 {[%clk 01:23:21]} {[%emt 00:04:10]} 7. a4 {[%clk 01:20:09]}
{[%emt 00:03:41]} Be6 {[%clk 01:18:10]} {[%emt 00:05:40]} 8. Bxe6 {[%clk
01:11:42]} {[%emt 00:08:57]} fxe6 {[%clk 01:18:02]} {[%emt 00:00:39]} 9. Re1
{[%clk 01:08:54]} {[%emt 00:03:17]} O-O {[%clk 01:15:00]} {[%emt 00:03:33]} 10.
d3 {[%clk 01:07:43]} {[%emt 00:01:40]} Qe8 {[%clk 01:12:28]} {[%emt 00:03:02]}
11. Be3 {[%clk 01:06:26]} {[%emt 00:01:47]} Nd4 {[%clk 01:04:16]} {[%emt
00:08:42]} 12. Bxd4 {[%clk 01:03:54]} {[%emt 00:03:02]} Bxd4 {[%clk 01:03:36]}
{[%emt 00:01:09]} 13. Ne2 {[%clk 01:00:59]} {[%emt 00:03:25]} Ba7 {[%clk
01:02:14]} {[%emt 00:01:53]} 14. Ng3 {[%clk 00:48:37]} {[%emt 00:12:51]} Qg6
{[%clk 01:00:18]} {[%emt 00:02:26]} 15. d4 {[%clk 00:46:34]} {[%emt 00:02:34]}
Nd7 {[%clk 00:50:55]} {[%emt 00:09:53]} 16. Ra3 {[%clk 00:43:29]} {[%emt
00:03:36]} exd4 {[%clk 00:47:11]} {[%emt 00:04:13]} 17. Nxd4 {[%clk 00:41:26]}
{[%emt 00:02:33]} Qf6 {[%clk 00:45:53]} {[%emt 00:01:47]} 18. Rd3 {[%clk
00:36:29]} {[%emt 00:05:29]} Qxf2+ {[%clk 00:44:47]} {[%emt 00:01:34]} 19. Kh2
{[%clk 00:36:45]} {[%emt 00:00:14]} Qf6 {[%clk 00:42:34]} {[%emt 00:02:43]} 20.
c3 {[%clk 00:32:19]} {[%emt 00:04:57]} Ne5 {[%clk 00:24:19]} {[%emt 00:18:45]}
21. Nh5 {[%clk 00:26:57]} {[%emt 00:05:52]} Qf7 {[%clk 00:22:37]} {[%emt
00:02:11]} 22. Rg3 {[%clk 00:26:34]} {[%emt 00:00:53]} g6 {[%clk 00:21:56]}
{[%emt 00:01:12]} 23. Nf3 {[%clk 00:18:13]} {[%emt 00:08:51]} Bf2 {[%clk
00:21:17]} {[%emt 00:01:09]} 24. Rg5 {[%clk 00:17:17]} {[%emt 00:01:26]} Nxf3+
{[%clk 00:21:17]} {[%emt 00:00:30]} 25. gxf3 {[%clk 00:16:40]} {[%emt
00:01:08]} Bxe1 {[%clk 00:21:30]} {[%emt 00:00:17]} 0-1

[Event "Schack-SM 2024: Veteran-SM 65+"]
[Site "Fortnox Arena, Hejaregatan 5, Vaxjo, Sweden"]
[Date "2024.07.07"]
[Round "9.4"]
[White "Larsson, Per-Olov"]
[Black "Malmdin, Nils-Ake"]
[Result "1/2-1/2"]
[TimeControl "90 minutes for 40 moves + 30 minutes for the rest of the game + 30 seconds per move from move one."]
[BlackTitle "FM"]
[WhiteElo "1933"]
[BlackElo "2064"]

1. e4 {[%clk 01:30:54]} {[%emt 00:00:05]} d5 {[%clk 01:30:25]} {[%emt
00:00:35]} 2. exd5 {[%clk 01:30:56]} {[%emt 00:00:28]} Nf6 {[%clk 01:30:43]}
{[%emt 00:00:11]} 3. Bb5+ {[%clk 01:30:23]} {[%emt 00:01:04]} Bd7 {[%clk
01:30:20]} {[%emt 00:00:53]} 4. Bxd7+ {[%clk 01:30:11]} {[%emt 00:00:42]} Qxd7
{[%clk 01:29:46]} {[%emt 00:01:03]} 5. d4 {[%clk 01:29:17]} {[%emt 00:01:24]}
Qxd5 {[%clk 01:29:23]} {[%emt 00:00:52]} 6. Nf3 {[%clk 01:29:00]} {[%emt
00:00:48]} Nc6 {[%clk 01:29:31]} {[%emt 00:00:22]} 7. O-O {[%clk 01:25:48]}
{[%emt 00:03:43]} O-O-O {[%clk 01:27:25]} {[%emt 00:02:36]} 8. Nc3 {[%clk
01:20:26]} {[%emt 00:05:52]} Qf5 {[%clk 01:19:55]} {[%emt 00:07:59]} 9. Ne2
{[%clk 01:15:15]} {[%emt 00:05:42]} e5 {[%clk 01:12:19]} {[%emt 00:08:05]} 10.
c3 {[%clk 01:12:51]} {[%emt 00:02:55]} Bd6 {[%clk 00:58:25]} {[%emt 00:14:23]}
11. Ng3 {[%clk 01:03:57]} {[%emt 00:09:25]} Qe6 {[%clk 00:53:34]} {[%emt
00:05:20]} 12. Ng5 {[%clk 00:53:24]} {[%emt 00:11:04]} Qd5 {[%clk 00:47:38]}
{[%emt 00:06:24]} 13. Qc2 {[%clk 00:43:45]} {[%emt 00:10:11]} Rd7 {[%clk
00:43:40]} {[%emt 00:04:28]} 14. dxe5 {[%clk 00:40:41]} {[%emt 00:03:34]} Qxe5
{[%clk 00:40:37]} {[%emt 00:03:31]} 15. Nf3 {[%clk 00:38:32]} {[%emt 00:02:41]}
Qe7 {[%clk 00:32:12]} {[%emt 00:08:53]} 16. Re1 {[%clk 00:37:05]} {[%emt
00:01:59]} Qd8 {[%clk 00:32:15]} {[%emt 00:00:27]} 17. Bg5 {[%clk 00:28:12]}
{[%emt 00:09:23]} h6 {[%clk 00:32:09]} {[%emt 00:00:36]} 18. Bxf6 {[%clk
00:28:10]} {[%emt 00:00:32]} Qxf6 {[%clk 00:32:26]} {[%emt 00:00:12]} 19. Ne4
{[%clk 00:28:09]} {[%emt 00:00:31]} Qf4 {[%clk 00:31:03]} {[%emt 00:01:53]} 20.
Nxd6+ {[%clk 00:27:56]} {[%emt 00:00:45]} Rxd6 {[%clk 00:30:58]} {[%emt
00:00:32]} 21. Re4 {[%clk 00:27:24]} {[%emt 00:01:03]} Qf6 {[%clk 00:30:58]}
{[%emt 00:00:29]} 22. Rae1 {[%clk 00:27:02]} {[%emt 00:00:53]} Rhd8 {[%clk
00:30:44]} {[%emt 00:00:44]} 23. h3 {[%clk 00:26:27]} {[%emt 00:01:05]} Qg6
{[%clk 00:27:43]} {[%emt 00:03:30]} 24. Qa4 {[%clk 00:24:52]} {[%emt 00:02:07]}
Kb8 {[%clk 00:23:27]} {[%emt 00:04:46]} 25. Nd4 {[%clk 00:20:29]} {[%emt
00:04:53]} Nxd4 {[%clk 00:23:01]} {[%emt 00:00:55]} 26. Rxd4 {[%clk 00:20:53]}
{[%emt 00:00:07]} Rxd4 {[%clk 00:22:35]} {[%emt 00:00:55]} 27. Qxd4 {[%clk
00:21:08]} {[%emt 00:00:14]} Rc8 {[%clk 00:21:42]} {[%emt 00:01:24]} 28. Qd7
{[%clk 00:19:14]} {[%emt 00:02:23]} b6 {[%clk 00:21:11]} {[%emt 00:01:03]} 29.
a4 {[%clk 00:16:10]} {[%emt 00:03:35]} Qf6 {[%clk 00:12:59]} {[%emt 00:08:40]}
30. Re7 {[%clk 00:15:02]} {[%emt 00:01:38]} Qf4 {[%clk 00:12:20]} {[%emt
00:01:10]} 31. Re3 {[%clk 00:11:48]} {[%emt 00:03:43]} a5 {[%clk 00:11:58]}
{[%emt 00:00:53]} 32. Qd1 {[%clk 00:09:38]} {[%emt 00:02:39]} Qf6 {[%clk
00:09:21]} {[%emt 00:03:07]} 33. Rf3 {[%clk 00:09:29]} {[%emt 00:00:39]} Qe7
{[%clk 00:09:32]} {[%emt 00:00:18]} 34. Re3 {[%emt 00:01:09]} 1/2-1/2

[Event "Schack-SM 2024: Veteran-SM 65+"]
[Site "Fortnox Arena, Hejaregatan 5, Vaxjo, Sweden"]
[Date "2024.07.07"]
[Round "9.5"]
[White "Wengholm, Anders"]
[Black "Sigeman, Johan"]
[Result "1/2-1/2"]
[TimeControl "90 minutes for 40 moves + 30 minutes for the rest of the game + 30 seconds per move from move one."]
[WhiteTitle "CM"]
[WhiteElo "2180"]
[BlackElo "2049"]

1. d4 {[%clk 01:30:45]} {[%emt 00:00:15]} d5 {[%clk 01:30:50]} {[%emt
00:00:09]} 2. c4 {[%clk 01:31:07]} {[%emt 00:00:09]} e6 {[%clk 01:30:59]}
{[%emt 00:00:20]} 3. Nc3 {[%clk 01:30:37]} {[%emt 00:01:00]} Nf6 {[%clk
01:29:09]} {[%emt 00:02:21]} 4. cxd5 {[%clk 01:29:09]} {[%emt 00:01:58]} exd5
{[%clk 01:29:28]} {[%emt 00:00:10]} 5. Bg5 {[%clk 01:29:29]} {[%emt 00:00:10]}
c6 {[%clk 01:29:41]} {[%emt 00:00:16]} 6. e3 {[%clk 01:28:51]} {[%emt
00:01:09]} Be7 {[%clk 01:29:37]} {[%emt 00:00:34]} 7. Bd3 {[%clk 01:28:36]}
{[%emt 00:00:45]} Nbd7 {[%clk 01:29:27]} {[%emt 00:00:40]} 8. Nf3 {[%clk
01:25:17]} {[%emt 00:03:49]} h6 {[%clk 01:29:12]} {[%emt 00:00:45]} 9. Bh4
{[%clk 01:24:58]} {[%emt 00:00:49]} Nh5 {[%clk 01:29:07]} {[%emt 00:00:36]} 10.
Bxe7 {[%clk 01:25:06]} {[%emt 00:00:21]} Qxe7 {[%clk 01:29:29]} {[%emt
00:00:07]} 11. Qc2 {[%clk 01:25:08]} {[%emt 00:00:29]} Nf4 {[%clk 01:28:22]}
{[%emt 00:01:37]} 12. Bf1 {[%clk 01:24:27]} {[%emt 00:01:11]} Nh5 {[%clk
01:19:52]} {[%emt 00:09:01]} 13. Bd3 {[%clk 01:23:07]} {[%emt 00:01:49]} Nf4
{[%clk 01:20:15]} {[%emt 00:00:08]} 14. Bf1 {[%clk 01:23:18]} {[%emt 00:00:19]}
Nh5 {[%clk 01:20:28]} {[%emt 00:00:15]} 15. Bd3 {[%emt 00:06:44]} 1/2-1/2

[Event "Schack-SM 2024: Veteran-SM 65+"]
[Site "Fortnox Arena, Hejaregatan 5, Vaxjo, Sweden"]
[Date "2024.07.07"]
[Round "9.6"]
[White "Gromark, Per-Olof"]
[Black "Blomstrom, Lars"]
[Result "1/2-1/2"]
[TimeControl "90 minutes for 40 moves + 30 minutes for the rest of the game + 30 seconds per move from move one."]
[WhiteElo "1898"]
[BlackElo "2122"]

1. c4 {[%clk 01:30:51]} {[%emt 00:00:09]} Nf6 {[%clk 01:30:54]} {[%emt
00:00:06]} 2. Nc3 {[%clk 01:31:15]} {[%emt 00:00:06]} g6 {[%clk 01:31:12]}
{[%emt 00:00:12]} 3. g3 {[%clk 01:31:39]} {[%emt 00:00:05]} Bg7 {[%clk
01:31:34]} {[%emt 00:00:08]} 4. Bg2 {[%clk 01:32:03]} {[%emt 00:00:06]} O-O
{[%clk 01:31:46]} {[%emt 00:00:18]} 5. e4 {[%clk 01:32:11]} {[%emt 00:00:22]}
d6 {[%clk 01:31:54]} {[%emt 00:00:22]} 6. Nge2 {[%clk 01:32:31]} {[%emt
00:00:10]} c5 {[%clk 01:32:06]} {[%emt 00:00:19]} 7. O-O {[%clk 01:32:37]}
{[%emt 00:00:24]} Nc6 {[%clk 01:32:32]} {[%emt 00:00:04]} 8. d3 {[%clk
01:31:49]} {[%emt 00:01:17]} Rb8 {[%clk 01:31:05]} {[%emt 00:01:57]} 9. h3
{[%clk 01:31:27]} {[%emt 00:00:53]} Ne8 {[%clk 01:26:17]} {[%emt 00:05:18]} 10.
Be3 {[%clk 01:28:23]} {[%emt 00:03:34]} Nc7 {[%clk 01:26:24]} {[%emt 00:00:24]}
11. a4 {[%clk 01:26:40]} {[%emt 00:02:12]} Ne6 {[%clk 01:25:16]} {[%emt
00:01:38]} 12. Rb1 {[%clk 01:25:01]} {[%emt 00:02:08]} Ned4 {[%clk 01:12:44]}
{[%emt 00:13:02]} 13. Nb5 {[%clk 01:21:25]} {[%emt 00:04:06]} Nxe2+ {[%clk
01:12:22]} {[%emt 00:00:53]} 14. Qxe2 {[%clk 01:21:40]} {[%emt 00:00:15]} a6
{[%clk 01:12:42]} {[%emt 00:00:10]} 15. Nc3 {[%clk 01:21:09]} {[%emt 00:01:01]}
Nd4 {[%clk 01:12:11]} {[%emt 00:01:01]} 16. Bxd4 {[%clk 01:18:45]} {[%emt
00:02:54]} Bxd4 {[%clk 01:11:52]} {[%emt 00:00:48]} 17. Qd2 {[%clk 01:18:10]}
{[%emt 00:01:05]} Qa5 {[%clk 01:06:25]} {[%emt 00:05:53]} 18. Qc2 {[%clk
01:17:17]} {[%emt 00:01:28]} Bd7 {[%clk 01:05:49]} {[%emt 00:01:05]} 19. Ra1
{[%clk 01:14:00]} {[%emt 00:03:46]} e6 {[%clk 00:54:22]} {[%emt 00:11:58]} 20.
Kh2 {[%clk 01:09:26]} {[%emt 00:05:05]} 1/2-1/2

[Event "Schack-SM 2024: Veteran-SM 65+"]
[Site "Fortnox Arena, Hejaregatan 5, Vaxjo, Sweden"]
[Date "2024.07.06"]
[Round "8.5"]
[White "Wedin, Svante"]
[Black "Gromark, Per-Olof"]
[Result "1-0"]
[TimeControl "90 minutes for 40 moves + 30 minutes for the rest of the game + 30 seconds per move from move one."]
[WhiteElo "1907"]
[BlackElo "1898"]

1. e4 {[%clk 01:30:55]} {[%emt 00:00:05]} c5 {[%clk 01:30:46]} {[%emt
00:00:14]} 2. Nf3 {[%clk 01:31:20]} {[%emt 00:00:05]} d6 {[%clk 01:31:12]}
{[%emt 00:00:05]} 3. d4 {[%clk 01:31:44]} {[%emt 00:00:06]} cxd4 {[%clk
01:31:39]} {[%emt 00:00:02]} 4. Nxd4 {[%clk 01:32:07]} {[%emt 00:00:08]} Nf6
{[%clk 01:32:03]} {[%emt 00:00:05]} 5. Nc3 {[%clk 01:32:30]} {[%emt 00:00:07]}
a6 {[%clk 01:32:30]} {[%emt 00:00:03]} 6. Bg5 {[%clk 01:32:49]} {[%emt
00:00:11]} e6 {[%clk 01:32:35]} {[%emt 00:00:24]} 7. f4 {[%clk 01:32:55]}
{[%emt 00:00:26]} Be7 {[%clk 01:32:54]} {[%emt 00:00:10]} 8. Qf3 {[%clk
01:33:17]} {[%emt 00:00:08]} Qc7 {[%clk 01:33:06]} {[%emt 00:00:18]} 9. O-O-O
{[%clk 01:33:39]} {[%emt 00:00:08]} Nbd7 {[%clk 01:33:26]} {[%emt 00:00:09]} 10.
g4 {[%clk 01:29:31]} {[%emt 00:04:39]} h6 {[%clk 01:32:48]} {[%emt 00:01:09]}
11. Bxf6 {[%clk 01:29:01]} {[%emt 00:00:59]} Bxf6 {[%clk 01:32:52]} {[%emt
00:00:26]} 12. h4 {[%clk 01:28:20]} {[%emt 00:01:11]} Bxd4 {[%clk 01:32:59]}
{[%emt 00:00:24]} 13. Rxd4 {[%clk 01:28:48]} {[%emt 00:00:02]} Qc5 {[%clk
01:33:20]} {[%emt 00:00:08]} 14. Qd3 {[%clk 01:21:32]} {[%emt 00:07:46]} Ke7
{[%clk 01:18:54]} {[%emt 00:14:56]} 15. Bg2 {[%clk 01:18:23]} {[%emt 00:03:39]}
Nb6 {[%clk 01:08:51]} {[%emt 00:10:33]} 16. Rd1 {[%clk 01:10:06]} {[%emt
00:08:47]} Rd8 {[%clk 01:07:20]} {[%emt 00:02:00]} 17. g5 {[%clk 00:58:52]}
{[%emt 00:11:45]} f6 {[%clk 00:46:18]} {[%emt 00:21:33]} 18. gxh6 {[%clk
00:51:51]} {[%emt 00:07:30]} gxh6 {[%clk 00:46:44]} {[%emt 00:00:04]} 19. e5
{[%clk 00:49:46]} {[%emt 00:02:35]} fxe5 {[%clk 00:44:35]} {[%emt 00:02:39]} 20.
Qh7+ {[%clk 00:48:52]} {[%emt 00:01:25]} Ke8 {[%clk 00:44:35]} {[%emt
00:00:29]} 21. Qg8+ {[%clk 00:48:04]} {[%emt 00:01:18]} Ke7 {[%clk 00:43:59]}
{[%emt 00:01:07]} 22. Qg7+ {[%clk 00:48:08]} {[%emt 00:00:25]} Ke8 {[%clk
00:44:16]} {[%emt 00:00:13]} 23. fxe5 {[%clk 00:46:38]} {[%emt 00:02:01]} d5
{[%clk 00:42:17]} {[%emt 00:02:28]} 24. Rf1 {[%clk 00:44:39]} {[%emt 00:02:28]}
Qe7 {[%clk 00:39:04]} {[%emt 00:03:43]} 25. Qg6+ {[%clk 00:44:20]} {[%emt
00:00:51]} 1-0

[Event "Schack-SM 2024: Veteran-SM 65+"]
[Site "Fortnox Arena, Hejaregatan 5, Vaxjo, Sweden"]
[Date "2024.07.06"]
[Round "8.6"]
[White "Gillefalk, Bjorn"]
[Black "Olsson, Torgny"]
[Result "1/2-1/2"]
[TimeControl "90 minutes for 40 moves + 30 minutes for the rest of the game + 30 seconds per move from move one."]
[WhiteElo "2063"]
[BlackElo "1875"]

1. Nf3 {[%clk 01:30:57]} {[%emt 00:08:32]} d5 {[%clk 01:30:27]} {[%emt
00:00:33]} 2. g3 {[%clk 01:31:24]} {[%emt 00:00:04]} c6 {[%clk 01:30:20]}
{[%emt 00:00:36]} 3. Bg2 {[%clk 01:31:40]} {[%emt 00:00:14]} Bg4 {[%clk
01:30:15]} {[%emt 00:00:35]} 4. c4 {[%clk 01:30:41]} {[%emt 00:01:30]} e6
{[%clk 01:27:46]} {[%emt 00:02:58]} 5. b3 {[%clk 01:24:31]} {[%emt 00:06:40]}
Nd7 {[%clk 01:25:30]} {[%emt 00:02:47]} 6. Bb2 {[%clk 01:24:54]} {[%emt
00:00:07]} Ngf6 {[%clk 01:24:55]} {[%emt 00:01:04]} 7. O-O {[%clk 01:25:01]}
{[%emt 00:00:22]} Be7 {[%clk 01:22:45]} {[%emt 00:02:41]} 8. d3 {[%clk
01:24:00]} {[%emt 00:01:32]} O-O {[%clk 01:20:45]} {[%emt 00:02:29]} 9. Nbd2
{[%clk 01:24:10]} {[%emt 00:00:21]} Qc7 {[%clk 01:18:10]} {[%emt 00:03:04]} 10.
Rc1 {[%clk 01:22:01]} {[%emt 00:02:37]} Rad8 {[%clk 01:12:28]} {[%emt
00:06:14]} 11. h3 {[%clk 01:16:16]} {[%emt 00:06:15]} Bxf3 {[%clk 01:06:14]}
{[%emt 00:06:44]} 12. Nxf3 {[%clk 01:16:06]} {[%emt 00:00:38]} Qb8 {[%clk
01:04:55]} {[%emt 00:01:51]} 13. e3 {[%clk 00:59:26]} {[%emt 00:17:11]} e5
{[%clk 01:00:34]} {[%emt 00:04:50]} 1/2-1/2

[Event "Schack-SM 2024: Veteran-SM 65+"]
[Site "Fortnox Arena, Hejaregatan 5, Vaxjo, Sweden"]
[Date "2024.07.06"]
[Round "8.7"]
[White "Blomstrom, Lars"]
[Black "Andersson, Sven-Olof"]
[Result "1/2-1/2"]
[TimeControl "90 minutes for 40 moves + 30 minutes for the rest of the game + 30 seconds per move from move one."]
[WhiteElo "2122"]
[BlackElo "1884"]

1. b3 {[%clk 01:30:19]} {[%emt 00:00:41]} d5 {[%clk 01:29:08]} {[%emt
00:01:51]} 2. Bb2 {[%clk 01:30:28]} {[%emt 00:00:22]} Nf6 {[%clk 01:28:58]}
{[%emt 00:00:40]} 3. e3 {[%clk 01:30:20]} {[%emt 00:00:38]} c6 {[%clk
01:26:46]} {[%emt 00:02:42]} 4. Be2 {[%clk 01:23:35]} {[%emt 00:07:15]} g6
{[%clk 01:16:44]} {[%emt 00:10:32]} 5. f4 {[%clk 01:22:17]} {[%emt 00:01:48]}
Bg7 {[%clk 01:16:42]} {[%emt 00:00:33]} 6. Nf3 {[%clk 01:22:35]} {[%emt
00:00:10]} O-O {[%clk 01:17:01]} {[%emt 00:00:11]} 7. O-O {[%clk 01:22:50]}
{[%emt 00:00:16]} Nbd7 {[%clk 01:12:24]} {[%emt 00:05:08]} 8. Qe1 {[%clk
01:18:28]} {[%emt 00:04:50]} Ne4 {[%clk 01:08:35]} {[%emt 00:04:20]} 9. Bxg7
{[%clk 01:17:13]} {[%emt 00:01:46]} Kxg7 {[%clk 01:08:49]} {[%emt 00:00:15]} 10.
Kh1 {[%clk 00:48:08]} {[%emt 00:29:35]} e6 {[%clk 01:03:23]} {[%emt 00:05:53]}
1/2-1/2

[Event "Schack-SM 2024: Veteran-SM 65+"]
[Site "Fortnox Arena, Hejaregatan 5, Vaxjo, Sweden"]
[Date "2024.07.06"]
[Round "8.1"]
[White "Bohlin, Jan"]
[Black "Engstrom, Kaj"]
[Result "0-1"]
[TimeControl "90 minutes for 40 moves + 30 minutes for the rest of the game + 30 seconds per move from move one."]
[WhiteElo "1854"]
[BlackElo "2163"]

1. c4 {[%clk 01:30:58]} {[%emt 00:00:01]} e5 {[%clk 01:30:54]} {[%emt
00:00:06]} 2. Nc3 {[%clk 01:31:07]} {[%emt 00:00:21]} Nc6 {[%clk 01:30:07]}
{[%emt 00:01:17]} 3. Nf3 {[%clk 01:31:16]} {[%emt 00:00:20]} f5 {[%clk
01:28:24]} {[%emt 00:02:14]} 4. g3 {[%clk 01:30:15]} {[%emt 00:01:31]} e4
{[%clk 01:23:48]} {[%emt 00:05:06]} 5. Nh4 {[%clk 01:30:26]} {[%emt 00:00:18]}
d6 {[%clk 01:18:40]} {[%emt 00:05:39]} 6. Bh3 {[%clk 01:24:07]} {[%emt
00:06:48]} Nh6 {[%clk 01:13:10]} {[%emt 00:06:01]} 7. Ng2 {[%clk 01:07:42]}
{[%emt 00:16:55]} g5 {[%clk 01:02:59]} {[%emt 00:10:41]} 8. Ne3 {[%clk
01:06:34]} {[%emt 00:01:37]} Bg7 {[%clk 00:59:32]} {[%emt 00:03:58]} 9. Ned5
{[%clk 01:01:40]} {[%emt 00:05:23]} O-O {[%clk 00:55:55]} {[%emt 00:04:07]} 10.
O-O {[%clk 00:50:49]} {[%emt 00:11:18]} Ne5 {[%clk 00:52:13]} {[%emt 00:04:15]}
11. d3 {[%clk 00:40:59]} {[%emt 00:10:21]} c6 {[%clk 00:49:56]} {[%emt
00:02:47]} 12. Ne3 {[%clk 00:31:56]} {[%emt 00:09:33]} f4 {[%clk 00:44:24]}
{[%emt 00:06:03]} 13. Bxc8 {[%clk 00:31:26]} {[%emt 00:00:59]} Qxc8 {[%clk
00:44:35]} {[%emt 00:00:19]} 14. d4 {[%clk 00:28:42]} {[%emt 00:03:13]} Qh3
{[%clk 00:36:48]} {[%emt 00:08:18]} 15. gxf4 {[%clk 00:26:09]} {[%emt
00:03:03]} Neg4 {[%clk 00:33:34]} {[%emt 00:03:44]} 0-1